[Event "44th Chess Olympiad Women 2022"]
[Site "Chennai"]
[Date "2022.08.07"]
[Round "9.47"]
[White "Blackman, Katrina"]
[Black "Enomah Emmanuella Trust"]
[Result "0-1"]
[WhiteElo "1691"]
[BlackElo "1901"]
[Annotator "NA"]
[PlyCount "84"]
[EventDate "2022.??.??"]
[TimeControl "60"]

1. e3 {[%emt 0:00:09]} c5 {[%emt 0:01:57]} 2. f4 {[%emt 0:00:13]} d5 {[%emt 0:
00:00]} 3. Nf3 {[%emt 0:00:03]} Nc6 {[%emt 0:01:29]} 4. Bb5 {[%emt 0:01:23]}
Qb6 {[%emt 0:02:37]} 5. Bxc6+ {[%emt 0:06:20]} bxc6 {[%emt 0:00:43]} 6. O-O {
[%emt 0:04:27]} Ba6 {[%emt 0:00:32]} 7. Re1 {[%emt 0:00:03]} Nf6 {[%emt 0:00:
00]} 8. d3 {[%emt 0:04:26]} e6 {[%emt 0:00:47]} 9. Kh1 {[%emt 0:01:28]} c4 {
[%emt 0:05:20]} 10. Nc3 {[%emt 0:01:35]} Be7 {[%emt 0:01:01]} 11. Ne5 {[%emt 0:
00:00]} cxd3 {[%emt 0:00:43]} 12. cxd3 {[%emt 0:00:45]} O-O {[%emt 0:01:10]}
13. b3 {[%emt 0:10:47]} Rfd8 {[%emt 0:03:59]} 14. Bb2 {[%emt 0:00:46]} c5 {
[%emt 0:01:57]} 15. Ne2 {[%emt 0:04:17]} Rac8 {[%emt 0:03:17]} 16. Rc1 {
[%emt 0:02:24]} Bd6 {[%emt 0:00:56]} 17. Ng3 {[%emt 0:00:00]} Bb7 {[%emt 0:00:
00]} 18. Ng4 {[%emt 0:07:53]} Nxg4 {[%emt 0:04:51]} 19. Qxg4 {[%emt 0:00:03]}
d4 {[%emt 0:00:26]} 20. exd4 {[%emt 0:08:01]} cxd4 {[%emt 0:00:10]} 21. f5 {
[%emt 0:00:42]} Rxc1 {[%emt 0:05:32]} 22. Rxc1 {[%emt 0:00:26]} e5 {[%emt 0:00:
00]} 23. f6 {[%emt 0:02:05]} g6 {[%emt 0:00:58]} 24. Nf5 {[%emt 0:00:02]} Bf8 {
[%emt 0:00:52]} 25. Ne7+ {[%emt 0:04:49]} Kh8 {[%emt 0:00:35]} 26. Qg5 {
[%emt 0:02:41]} Qa5 {[%emt 0:02:33]} 27. a4 {[%emt 0:13:32]} h6 {[%emt 0:02:00]
} 28. Qg3 {[%emt 0:00:52]} Qd2 {[%emt 0:01:00]} 29. Ba3 {[%emt 0:00:55]} Kh7 {
[%emt 0:10:07]} 30. Rg1 {[%emt 0:01:55]} Qa2 {[%emt 0:07:26]} 31. Bc5 {[%emt 0:
00:00]} Qxb3 {[%emt 0:03:33]} 32. Bxa7 {[%emt 0:00:07]} Qxa4 {[%emt 0:01:52]}
33. Bb6 {[%emt 0:00:02]} Rd6 {[%emt 0:01:06]} 34. Bc5 {[%emt 0:04:53]} Rxf6 {
[%emt 0:07:13]} 35. Qxe5 {[%emt 0:01:18]} Re6 {[%emt 0:01:22]} 36. Qc7 {
[%emt 0:00:19]} Qa6 {[%emt 0:03:04]} 37. Nf5 {[%emt 0:05:02]} Rf6 {[%emt 0:00:
00]} 38. Nxd4 {[%emt 0:00:40]} Bxc5 {[%emt 0:00:38]} 39. Qxc5 {[%emt 0:00:03]}
Qxd3 {[%emt 0:00:28]} 40. Qe5 {[%emt 0:05:38]} Rf1 {[%emt 0:01:42]} 41. Ne2 {
[%emt 0:31:02]} Bxg2+ {[%emt 0:32:00]} 42. Kxg2 {[%emt 0:00:19]} Qf3# {[%emt 0:
00:00]} 0-1

[Event "44th Chess Olympiad Women 2022"]
[Site "Chennai"]
[Date "2022.08.07"]
[Round "9.47"]
[White "Moore, Gaybrianna"]
[Black "Ogbiyoyo, Perpetual Eloho"]
[Result "1-0"]
[WhiteElo "1335"]
[BlackElo "1886"]
[Annotator "NA RC"]
[PlyCount "131"]
[EventDate "2022.??.??"]
[TimeControl "60"]

1. d4 {[%emt 0:00:05]} Nf6 {[%emt 0:00:08]} 2. Bf4 {[%emt 0:00:15]} c5 {
[%emt 0:00:10]} 3. e3 {[%emt 0:01:00]} cxd4 {[%emt 0:00:09]} 4. exd4 {[%emt 0:
00:00]} g6 {[%emt 0:00:06]} 5. Nf3 {[%emt 0:00:29]} Bg7 {[%emt 0:00:08]} 6. h3
{[%emt 0:01:01]} O-O {[%emt 0:00:22]} 7. Bd3 {[%emt 0:02:07]} d6 {[%emt 0:00:
00]} 8. O-O {[%emt 0:01:56]} b6 {[%emt 0:00:10]} 9. c4 {[%emt 0:03:51]} d5 {
[%emt 0:01:06]} 10. cxd5 {[%emt 0:06:12]} Nxd5 {[%emt 0:00:17]} 11. Be4 {
[%emt 0:03:59]} Bb7 {[%emt 0:02:29]} 12. Qb3 {[%emt 0:06:10]} e6 {[%emt 0:00:
00]} 13. Nc3 {[%emt 0:05:05]} Nc6 {[%emt 0:08:08]} 14. Bxd5 {[%emt 0:06:31]}
exd5 {[%emt 0:02:22]} 15. Bg5 {[%emt 0:06:26]} Qd7 {[%emt 0:06:25]} 16. Qb5 {
[%emt 0:06:28]} h6 {[%emt 0:01:56]} 17. Bf4 {[%emt 0:07:03]} Qf5 {[%emt 0:00:
00]} 18. Nxd5 {[%emt 0:01:50]} Rfd8 {[%emt 0:00:47]} 19. Qxc6 {[%emt 0:03:33]}
Bxc6 {[%emt 0:01:20]} 20. Ne7+ {[%emt 0:00:08]} Kf8 {[%emt 0:00:10]} 21. Nxf5 {
[%emt 0:00:11]} gxf5 {[%emt 0:00:13]} 22. Ne5 {[%emt 0:02:56]} Rxd4 {[%emt 0:
00:00]} 23. Nxc6 {[%emt 0:02:57]} Rxf4 {[%emt 0:00:13]} 24. Rad1 {[%emt 0:00:
00]} Bxb2 {[%emt 0:01:10]} 25. Rd6 {[%emt 0:00:22]} Rc4 {[%emt 0:01:57]} 26.
Rxh6 {[%emt 0:01:32]} Kg7 {[%emt 0:00:21]} 27. Rd6 {[%emt 0:01:06]} Ba3 {
[%emt 0:02:56]} 28. Ne5 {[%emt 0:01:02]} Rc5 {[%emt 0:03:30]} 29. Nd3 {[%emt 0:
00:00]} Rc2 {[%emt 0:00:56]} 30. Rd4 {[%emt 0:01:33]} Rd2 {[%emt 0:06:44]} 31.
Re1 {[%emt 0:02:42]} Rc8 {[%emt 0:00:28]} 32. Rd7 {[%emt 0:00:52]} Rcc2 {
[%emt 0:01:05]} 33. Re3 {[%emt 0:02:04]} f4 {[%emt 0:09:18]} 34. Re4 {[%emt 0:
00:00]} Rd1+ {[%emt 0:13:40]} 35. Kh2 {[%emt 0:00:51]} Rcd2 {[%emt 0:00:38]}
36. Red4 {[%emt 0:01:09]} Kh6 {[%emt 0:07:54]} 37. R4d5 {[%emt 0:01:34]} Rxa2 {
[%emt 0:02:38]} 38. Rxf7 {[%emt 0:02:33]} Rxf2 {[%emt 0:06:09]} 39. Rxa7 {
[%emt 0:02:49]} Rff1 {[%emt 0:03:30]} 40. Nxf4 {[%emt 0:02:28]} Rxd5 {[%emt 0:
00:00]} 41. Nxd5 {[%emt 0:30:07]} Bd6+ {[%emt 0:31:58]} 42. g3 {[%emt 0:00:08]}
Rf2+ {[%emt 0:03:04]} 43. Kg1 {[%emt 0:00:06]} Bc5 {[%emt 0:01:17]} 44. Kh1 {
[%emt 0:01:41]} Kg6 {[%emt 0:00:00]} 45. Nf4+ {[%emt 0:00:00]} Kf5 {[%emt 0:00:
00]} 46. Rf7+ {[%emt 0:00:00]} Ke4 {[%emt 0:00:00]} 47. h4 {[%emt 0:00:00]} b5
{[%emt 0:00:00]} 48. h5 {[%emt 0:00:00]} b4 {[%emt 0:00:00]} 49. Rb7 {[%emt 0:
00:00]} Kf3 {[%emt 0:00:00]} 50. Nd3 {[%emt 0:00:00]} Rf1+ {[%emt 0:00:00]} 51.
Kh2 {[%emt 0:00:00]} Bg1+ {[%emt 0:00:00]} 52. Kh3 {[%emt 0:00:00]} b3 {
[%emt 0:00:00]} 53. Rxb3 {[%emt 0:00:00]} Be3 {[%emt 0:00:00]} 54. Ne5+ {
[%emt 0:00:00]} Ke4 {[%emt 0:00:00]} 55. Nc4 {[%emt 0:00:00]} Rh1+ {[%emt 0:00:
00]} 56. Kg4 {[%emt 0:00:00]} Bd4 {[%emt 0:00:00]} 57. Nd6+ {[%emt 0:00:00]}
Kd5 {[%emt 0:00:00]} 58. Nf5 {[%emt 0:00:00]} Bf6 {[%emt 0:00:00]} 59. Rb5+ {
[%emt 0:00:00]} Kc6 {[%emt 0:00:29]} 60. Rb8 {[%emt 0:00:00]} Kd5 {[%emt 0:00:
00]} 61. Rf8 {[%emt 0:00:00]} Ke6 {[%emt 0:00:30]} 62. h6 {[%emt 0:00:00]} Ra1
{[%emt 0:01:33]} 63. h7 {[%emt 0:00:00]} Ra4+ {[%emt 0:00:41]} 64. Kh3 {
[%emt 0:00:00]} Bh8 {[%emt 0:01:02]} 65. Rxh8 {[%emt 0:00:00]} Kxf5 {[%emt 0:
00:00]} 66. Rg8 {[%emt 0:00:00]} 1-0

[Event "44th Chess Olympiad Women 2022"]
[Site "Chennai"]
[Date "2022.08.07"]
[Round "9.47"]
[White "Ofowino, Toritsemuwa"]
[Black "Wilson, Hannah"]
[Result "1-0"]
[WhiteElo "1870"]
[BlackElo "1556"]
[Annotator "NA RC"]
[PlyCount "153"]
[EventDate "2022.??.??"]
[TimeControl "60"]

1. d4 {[%emt 0:00:04]} d5 {[%emt 0:00:10]} 2. Nf3 {[%emt 0:00:05]} Nf6 {
[%emt 0:00:12]} 3. c3 {[%emt 0:00:23]} c5 {[%emt 0:05:17]} 4. dxc5 {[%emt 0:00:
00]} e6 {[%emt 0:01:18]} 5. b4 {[%emt 0:00:15]} a5 {[%emt 0:01:03]} 6. e3 {
[%emt 0:01:58]} b6 {[%emt 0:02:43]} 7. Qa4+ {[%emt 0:03:08]} Bd7 {[%emt 0:00:
00]} 8. Bb5 {[%emt 0:03:59]} bxc5 {[%emt 0:01:23]} 9. bxc5 {[%emt 0:05:19]}
Bxc5 {[%emt 0:01:16]} 10. O-O {[%emt 0:03:22]} O-O {[%emt 0:03:06]} 11. c4 {
[%emt 0:03:18]} Bxb5 {[%emt 0:16:08]} 12. Qxb5 {[%emt 0:14:30]} Nbd7 {[%emt 0:
00:00]} 13. cxd5 {[%emt 0:11:21]} Nxd5 {[%emt 0:02:12]} 14. Bd2 {[%emt 0:03:01]
} Qf6 {[%emt 0:11:33]} 15. Nc3 {[%emt 0:04:06]} Nxc3 {[%emt 0:03:27]} 16. Bxc3
{[%emt 0:02:14]} Qxc3 {[%emt 0:01:39]} 17. Qxd7 {[%emt 0:00:04]} Qf6 {[%emt 0:
00:00]} 18. Qa4 {[%emt 0:02:53]} Rfd8 {[%emt 0:02:46]} 19. Rad1 {[%emt 0:04:46]
} Bb6 {[%emt 0:07:35]} 20. Qc6 {[%emt 0:07:54]} Rab8 {[%emt 0:05:55]} 21. Rb1 {
[%emt 0:04:05]} Ba7 {[%emt 0:09:19]} 22. Qc7 {[%emt 0:00:48]} Ra8 {[%emt 0:00:
00]} 23. Qc6 {[%emt 0:08:26]} Rdc8 {[%emt 0:02:57]} 24. Qb7 {[%emt 0:02:42]}
Qc3 {[%emt 0:03:41]} 25. g3 {[%emt 0:03:04]} Qa3 {[%emt 0:03:58]} 26. Ne5 {
[%emt 0:01:32]} Qf8 {[%emt 0:02:12]} 27. Rfd1 {[%emt 0:02:27]} Rcb8 {[%emt 0:
00:00]} 28. Qe4 {[%emt 0:01:12]} Rxb1 {[%emt 0:01:09]} 29. Qxb1 {[%emt 0:00:45]
} f6 {[%emt 0:00:45]} 30. Nc6 {[%emt 0:00:46]} Bc5 {[%emt 0:00:48]} 31. Rc1 {
[%emt 0:01:52]} Bb4 {[%emt 0:00:41]} 32. Qb3 {[%emt 0:01:08]} Qd6 {[%emt 0:00:
00]} 33. Nd4 {[%emt 0:00:41]} Re8 {[%emt 0:00:31]} 34. Rc6 {[%emt 0:00:57]} Qd5
{[%emt 0:00:34]} 35. Rxe6 {[%emt 0:01:41]} Qxb3 {[%emt 0:00:32]} 36. Rxe8+ {
[%emt 0:00:20]} Kf7 {[%emt 0:00:05]} 37. axb3 {[%emt 0:00:16]} Kxe8 {[%emt 0:
00:00]} 38. Kf1 {[%emt 0:00:09]} Kd7 {[%emt 0:00:12]} 39. Ke2 {[%emt 0:00:11]}
h6 {[%emt 0:00:45]} 40. Kd3 {[%emt 0:00:08]} g6 {[%emt 0:00:52]} 41. Kc4 {
[%emt 0:31:18]} Be1 {[%emt 0:01:47]} 42. f3 {[%emt 0:00:00]} Bf2 {[%emt 0:00:
00]} 43. Kd3 {[%emt 0:00:00]} Bg1 {[%emt 0:05:17]} 44. h3 {[%emt 0:00:00]} Bf2
{[%emt 0:00:47]} 45. g4 {[%emt 0:00:00]} Kd6 {[%emt 0:02:14]} 46. Ke4 {[%emt 0:
00:00]} Be1 {[%emt 0:02:49]} 47. f4 {[%emt 0:00:00]} Kc5 {[%emt 0:01:53]} 48.
Nc2 {[%emt 0:00:00]} Bc3 {[%emt 0:01:16]} 49. h4 {[%emt 0:00:00]} Bb2 {[%emt 0:
00:00]} 50. h5 {[%emt 0:00:00]} g5 {[%emt 0:04:22]} 51. fxg5 {[%emt 0:00:00]}
fxg5 {[%emt 0:00:21]} 52. Kf5 {[%emt 0:00:00]} Bg7 {[%emt 0:00:32]} 53. Kg6 {
[%emt 0:00:00]} Bf8 {[%emt 0:00:26]} 54. Kf7 {[%emt 0:00:00]} Bd6 {[%emt 0:00:
00]} 55. Kg7 {[%emt 0:00:00]} Be5+ {[%emt 0:02:23]} 56. Kxh6 {[%emt 0:00:00]}
Kd5 {[%emt 0:01:01]} 57. Kxg5 {[%emt 0:00:00]} Ke4 {[%emt 0:00:35]} 58. Na3 {
[%emt 0:00:00]} Kd3 {[%emt 0:00:54]} 59. Nc4 {[%emt 0:00:00]} Bc3 {[%emt 0:00:
00]} 60. h6 {[%emt 0:00:00]} Kc2 {[%emt 0:01:18]} 61. h7 {[%emt 0:00:00]} Kxb3
{[%emt 0:00:49]} 62. Nxa5+ {[%emt 0:00:00]} Kc2 {[%emt 0:00:18]} 63. Kf5 {
[%emt 0:00:00]} Kd3 {[%emt 0:00:25]} 64. e4 {[%emt 0:00:00]} Bh8 {[%emt 0:00:
00]} 65. Nc6 {[%emt 0:00:00]} Kc4 {[%emt 0:00:21]} 66. Ne5+ {[%emt 0:00:00]}
Kc5 {[%emt 0:00:49]} 67. Nf7 {[%emt 0:00:00]} Bg7 {[%emt 0:00:12]} 68. g5 {
[%emt 0:00:00]} Kc6 {[%emt 0:00:15]} 69. h8=Q {[%emt 0:00:00]} Bxh8 {[%emt 0:
00:00]} 70. Nxh8 {[%emt 0:00:00]} Kd7 {[%emt 0:00:08]} 71. Kf6 {[%emt 0:00:00]}
Ke8 {[%emt 0:00:15]} 72. Ng6 {[%emt 0:00:00]} Kd7 {[%emt 0:00:17]} 73. Kf7 {
[%emt 0:00:00]} Kd6 {[%emt 0:00:13]} 74. e5+ {[%emt 0:00:00]} Kd7 {[%emt 0:00:
00]} 75. e6+ {[%emt 0:00:00]} Kd6 {[%emt 0:00:15]} 76. e7 {[%emt 0:00:00]} Kc7
{[%emt 0:00:11]} 77. e8=Q {[%emt 0:00:00]} 1-0

[Event "44th Chess Olympiad Women 2022"]
[Site "Chennai"]
[Date "2022.08.07"]
[Round "9.47"]
[White "Onoja, Iyefu Joy"]
[Black "Eversley, Kiarra"]
[Result "1-0"]
[WhiteElo "1869"]
[BlackElo "1356"]
[Annotator "NA RC"]
[PlyCount "61"]
[EventDate "2022.??.??"]
[TimeControl "60"]

1. d4 {[%emt 0:00:03]} d5 {[%emt 0:00:18]} 2. c4 {[%emt 0:00:12]} c6 {[%emt 0:
00:00]} 3. e3 {[%emt 0:01:07]} Nf6 {[%emt 0:02:35]} 4. Nc3 {[%emt 0:00:17]} e6
{[%emt 0:01:13]} 5. Nf3 {[%emt 0:00:17]} Be7 {[%emt 0:00:26]} 6. Bd3 {[%emt 0:
00:00]} a6 {[%emt 0:00:56]} 7. b3 {[%emt 0:00:49]} dxc4 {[%emt 0:04:56]} 8.
Bxc4 {[%emt 0:00:18]} b5 {[%emt 0:03:50]} 9. Bd3 {[%emt 0:01:00]} c5 {[%emt 0:
00:00]} 10. Bb2 {[%emt 0:01:23]} cxd4 {[%emt 0:00:10]} 11. Nxd4 {[%emt 0:00:07]
} Bb7 {[%emt 0:02:16]} 12. O-O {[%emt 0:01:12]} O-O {[%emt 0:00:36]} 13. Rc1 {
[%emt 0:00:30]} Nbd7 {[%emt 0:00:12]} 14. Bb1 {[%emt 0:01:02]} b4 {[%emt 0:00:
00]} 15. Nce2 {[%emt 0:02:26]} Rc8 {[%emt 0:00:28]} 16. Ng3 {[%emt 0:03:24]}
Nc5 {[%emt 0:10:01]} 17. Nf3 {[%emt 0:11:36]} Qa5 {[%emt 0:00:58]} 18. Ne5 {
[%emt 0:07:52]} Rfd8 {[%emt 0:01:18]} 19. Qe2 {[%emt 0:00:33]} Nce4 {[%emt 0:
00:00]} 20. Nxe4 {[%emt 0:02:15]} Bxe4 {[%emt 0:03:42]} 21. Bxe4 {[%emt 0:00:
00]} Nxe4 {[%emt 0:00:54]} 22. Nc6 {[%emt 0:01:08]} Rxc6 {[%emt 0:03:36]} 23.
Rxc6 {[%emt 0:00:20]} Qxa2 {[%emt 0:01:14]} 24. Qc2 {[%emt 0:08:20]} Nc3 {
[%emt 0:07:24]} 25. Ra1 {[%emt 0:03:26]} Qxa1+ {[%emt 0:00:04]} 26. Bxa1 {
[%emt 0:00:06]} Rd1+ {[%emt 0:01:06]} 27. Qxd1 {[%emt 0:00:05]} Nxd1 {[%emt 0:
00:00]} 28. Rc8+ {[%emt 0:00:06]} Bf8 {[%emt 0:00:55]} 29. Bd4 {[%emt 0:00:17]}
f6 {[%emt 0:15:22]} 30. Bc5 {[%emt 0:00:10]} Kf7 {[%emt 0:21:57]} 31. Rxf8+ {
[%emt 0:00:11]} 1-0

[Event "44th Chess Olympiad Women 2022"]
[Site "Chennai"]
[Date "2022.08.07"]
[Round "9.48"]
[White "Al Maamari, Wafia Darwish"]
[Black "Ben Said, Safa"]
[Result "0-1"]
[WhiteElo "1841"]
[BlackElo "1564"]
[Annotator "NA RC"]
[PlyCount "144"]
[EventDate "2022.??.??"]
[TimeControl "60"]

1. e4 {[%emt 0:00:03]} e5 {[%emt 0:00:17]} 2. Nf3 {[%emt 0:00:05]} Nc6 {
[%emt 0:00:09]} 3. Bb5 {[%emt 0:00:29]} Nge7 {[%emt 0:01:16]} 4. Nc3 {[%emt 0:
00:00]} d6 {[%emt 0:00:51]} 5. d4 {[%emt 0:03:34]} exd4 {[%emt 0:04:10]} 6.
Nxd4 {[%emt 0:01:20]} a6 {[%emt 0:01:00]} 7. Be2 {[%emt 0:04:41]} Nxd4 {
[%emt 0:03:27]} 8. Qxd4 {[%emt 0:00:11]} Nc6 {[%emt 0:00:08]} 9. Qd1 {[%emt 0:
00:00]} Be7 {[%emt 0:02:41]} 10. Be3 {[%emt 0:01:20]} Be6 {[%emt 0:01:16]} 11.
Nd5 {[%emt 0:04:23]} O-O {[%emt 0:03:01]} 12. O-O {[%emt 0:03:49]} f5 {[%emt 0:
00:00]} 13. Nf4 {[%emt 0:02:59]} Qd7 {[%emt 0:03:35]} 14. b3 {[%emt 0:07:55]}
Bf7 {[%emt 0:04:28]} 15. exf5 {[%emt 0:01:18]} Qxf5 {[%emt 0:04:30]} 16. Bg4 {
[%emt 0:03:02]} Qe5 {[%emt 0:03:11]} 17. Re1 {[%emt 0:04:17]} Bf6 {[%emt 0:00:
00]} 18. Rb1 {[%emt 0:02:36]} Rae8 {[%emt 0:04:27]} 19. Bd7 {[%emt 0:03:47]}
Re7 {[%emt 0:03:55]} 20. Bd2 {[%emt 0:03:02]} Qc5 {[%emt 0:06:16]} 21. Rxe7 {
[%emt 0:06:28]} Nxe7 {[%emt 0:01:59]} 22. Be3 {[%emt 0:09:58]} Qe5 {[%emt 0:00:
00]} 23. Nd3 {[%emt 0:05:32]} Qa5 {[%emt 0:06:04]} 24. a4 {[%emt 0:00:50]} c6 {
[%emt 0:03:06]} 25. c4 {[%emt 0:04:15]} Qc7 {[%emt 0:08:51]} 26. Bg4 {[%emt 0:
00:00]} Ng6 {[%emt 0:00:17]} 27. Nf4 {[%emt 0:08:34]} Re8 {[%emt 0:01:56]} 28.
Nh5 {[%emt 0:02:34]} Qe7 {[%emt 0:04:35]} 29. Nxf6+ {[%emt 0:04:11]} Qxf6 {
[%emt 0:00:05]} 30. Bd4 {[%emt 0:00:58]} Ne5 {[%emt 0:00:41]} 31. Rb2 {[%emt 0:
00:00]} Qg5 {[%emt 0:05:04]} 32. Be2 {[%emt 0:02:16]} Bg6 {[%emt 0:03:39]} 33.
Be3 {[%emt 0:00:53]} Qf6 {[%emt 0:01:06]} 34. Rd2 {[%emt 0:00:46]} Rd8 {
[%emt 0:00:38]} 35. h3 {[%emt 0:00:39]} Nf7 {[%emt 0:01:13]} 36. a5 {[%emt 0:
00:00]} Re8 {[%emt 0:01:13]} 37. Bd4 {[%emt 0:00:57]} Qf5 {[%emt 0:00:32]} 38.
Bc3 {[%emt 0:00:37]} Ng5 {[%emt 0:00:32]} 39. Rxd6 {[%emt 0:00:31]} Ne4 {
[%emt 0:00:13]} 40. Rxg6 {[%emt 0:00:47]} Qxf2+ {[%emt 0:00:25]} 41. Kh2 {
[%emt 0:30:15]} hxg6 {[%emt 0:30:30]} 42. Be1 {[%emt 0:00:00]} Qf4+ {[%emt 0:
00:00]} 43. g3 {[%emt 0:00:00]} Qe3 {[%emt 0:00:00]} 44. Bf1 {[%emt 0:00:00]}
Nf2 {[%emt 0:00:00]} 45. Bxf2 {[%emt 0:00:00]} Qxf2+ {[%emt 0:00:00]} 46. Bg2 {
[%emt 0:00:00]} Re1 {[%emt 0:00:00]} 47. Qd8+ {[%emt 0:00:00]} Kf7 {[%emt 0:00:
00]} 48. Qd7+ {[%emt 0:00:00]} Re7 {[%emt 0:00:00]} 49. Qg4 {[%emt 0:00:00]}
Qf5 {[%emt 0:00:00]} 50. Qd1 {[%emt 0:00:00]} Qxa5 {[%emt 0:00:00]} 51. h4 {
[%emt 0:00:00]} Qe1 {[%emt 0:00:00]} 52. Qf3+ {[%emt 0:00:00]} Kg8 {[%emt 0:00:
00]} 53. Qg4 {[%emt 0:00:00]} Qe2 {[%emt 0:00:00]} 54. Qxg6 {[%emt 0:00:00]}
Qb2 {[%emt 0:00:00]} 55. Kh3 {[%emt 0:00:00]} Qf6 {[%emt 0:00:00]} 56. Qd3 {
[%emt 0:00:00]} Qe6+ {[%emt 0:00:22]} 57. Kh2 {[%emt 0:00:00]} Qe3 {[%emt 0:00:
00]} 58. Qd8+ {[%emt 0:00:00]} Re8 {[%emt 0:00:35]} 59. Qd7 {[%emt 0:00:00]}
Qe7 {[%emt 0:00:48]} 60. Qf5 {[%emt 0:00:00]} Rf8 {[%emt 0:01:05]} 61. Qg6 {
[%emt 0:00:00]} Rf2 {[%emt 0:00:48]} 62. Qg4 {[%emt 0:00:00]} Qe2 {[%emt 0:00:
00]} 63. Qh3 {[%emt 0:00:00]} Qc2 {[%emt 0:01:48]} 64. g4 {[%emt 0:00:00]} a5 {
[%emt 0:01:24]} 65. g5 {[%emt 0:00:00]} Qf5 {[%emt 0:01:00]} 66. Qc3 {[%emt 0:
00:00]} Qf4+ {[%emt 0:01:43]} 67. Kg1 {[%emt 0:00:00]} Re2 {[%emt 0:01:01]} 68.
Qh3 {[%emt 0:01:34]} Qe3+ {[%emt 0:00:49]} 69. Kh1 {[%emt 0:00:45]} Qxh3+ {
[%emt 0:00:33]} 70. Bxh3 {[%emt 0:00:05]} Re3 {[%emt 0:00:16]} 71. Bc8 {
[%emt 0:00:08]} Rxb3 {[%emt 0:00:25]} 72. c5 {[%emt 0:00:21]} Kf8 {[%emt 0:00:
00]} 0-1

[Event "44th Chess Olympiad Women 2022"]
[Site "Chennai"]
[Date "2022.08.07"]
[Round "9.48"]
[White "Meddeb, Chadha"]
[Black "Almaini, Aishah Sarhan"]
[Result "0-1"]
[WhiteElo "1561"]
[BlackElo "1615"]
[Annotator "NA"]
[PlyCount "72"]
[EventDate "2022.??.??"]
[TimeControl "60"]

1. e4 {[%emt 0:00:08]} g6 {[%emt 0:00:09]} 2. Nf3 {[%emt 0:00:35]} Bg7 {
[%emt 0:00:10]} 3. e5 {[%emt 0:14:50]} d6 {[%emt 0:03:52]} 4. exd6 {[%emt 0:00:
00]} cxd6 {[%emt 0:03:04]} 5. c3 {[%emt 0:02:18]} e5 {[%emt 0:10:56]} 6. d4 {
[%emt 0:11:36]} e4 {[%emt 0:06:00]} 7. Bb5+ {[%emt 0:03:48]} Bd7 {[%emt 0:00:
00]} 8. Bxd7+ {[%emt 0:01:43]} Qxd7 {[%emt 0:03:19]} 9. Ng5 {[%emt 0:08:40]} d5
{[%emt 0:06:03]} 10. Nd2 {[%emt 0:07:45]} h6 {[%emt 0:09:51]} 11. Nh3 {[%emt 0:
00:00]} f5 {[%emt 0:01:07]} 12. Nf4 {[%emt 0:03:33]} Ne7 {[%emt 0:01:14]} 13.
h4 {[%emt 0:10:25]} Nbc6 {[%emt 0:06:32]} 14. Nb3 {[%emt 0:00:29]} b6 {[%emt 0:
00:00]} 15. Qe2 {[%emt 0:05:22]} Rc8 {[%emt 0:17:01]} 16. Bd2 {[%emt 0:06:12]}
Nd8 {[%emt 0:02:32]} 17. Rh3 {[%emt 0:04:51]} Ne6 {[%emt 0:04:30]} 18. Nxe6 {
[%emt 0:06:54]} Qxe6 {[%emt 0:00:02]} 19. Qb5+ {[%emt 0:00:28]} Qc6 {[%emt 0:
00:00]} 20. Qxc6+ {[%emt 0:00:02]} Nxc6 {[%emt 0:00:01]} 21. Rg3 {[%emt 0:00:
00]} Kf7 {[%emt 0:00:52]} 22. Nc1 {[%emt 0:00:20]} Bf6 {[%emt 0:01:09]} 23. Rh3
{[%emt 0:00:50]} g5 {[%emt 0:01:12]} 24. hxg5 {[%emt 0:00:17]} hxg5 {[%emt 0:
00:00]} 25. Rxh8 {[%emt 0:02:23]} Rxh8 {[%emt 0:00:01]} 26. g3 {[%emt 0:00:49]}
Ne7 {[%emt 0:01:12]} 27. Kf1 {[%emt 0:00:22]} Ng6 {[%emt 0:00:09]} 28. Kg2 {
[%emt 0:00:57]} f4 {[%emt 0:03:11]} 29. gxf4 {[%emt 0:00:11]} gxf4 {[%emt 0:00:
00]} 30. Nb3 {[%emt 0:00:51]} Nh4+ {[%emt 0:02:08]} 31. Kf1 {[%emt 0:00:24]}
Bg5 {[%emt 0:02:41]} 32. Ke2 {[%emt 0:01:18]} Nf3 {[%emt 0:00:59]} 33. Rd1 {
[%emt 0:00:29]} Rh2 {[%emt 0:01:04]} 34. Be1 {[%emt 0:00:35]} Ng1+ {[%emt 0:00:
00]} 35. Kf1 {[%emt 0:00:48]} Nh3 {[%emt 0:00:11]} 36. Nc1 {[%emt 0:00:28]} f3
{[%emt 0:03:04]} 0-1

[Event "44th Chess Olympiad Women 2022"]
[Site "Chennai"]
[Date "2022.08.07"]
[Round "9.48"]
[White "Mefteh, Meyssem"]
[Black "Mariam, Essa"]
[Result "0-1"]
[WhiteElo "1254"]
[BlackElo "1591"]
[Annotator "NA RC"]
[PlyCount "62"]
[EventDate "2022.??.??"]
[TimeControl "60"]

1. e4 {[%emt 0:00:01]} c5 {[%emt 0:00:06]} 2. Nf3 {[%emt 0:00:05]} Nc6 {
[%emt 0:00:03]} 3. Nc3 {[%emt 0:00:05]} e5 {[%emt 0:00:08]} 4. Bc4 {[%emt 0:00:
00]} Be7 {[%emt 0:00:21]} 5. d3 {[%emt 0:00:14]} d6 {[%emt 0:00:05]} 6. Nd2 {
[%emt 0:00:14]} Nf6 {[%emt 0:00:43]} 7. Nf1 {[%emt 0:00:26]} O-O {[%emt 0:00:
00]} 8. Ne3 {[%emt 0:00:03]} Nd7 {[%emt 0:00:37]} 9. O-O {[%emt 0:05:59]} Bg5 {
[%emt 0:10:55]} 10. Ned5 {[%emt 0:10:45]} Bxc1 {[%emt 0:01:37]} 11. Rxc1 {
[%emt 0:05:11]} Nb6 {[%emt 0:00:16]} 12. Qd2 {[%emt 0:08:41]} Nxc4 {[%emt 0:00:
00]} 13. dxc4 {[%emt 0:00:07]} Be6 {[%emt 0:02:39]} 14. Nb5 {[%emt 0:05:49]} a6
{[%emt 0:02:22]} 15. Nxd6 {[%emt 0:04:51]} Bxd5 {[%emt 0:00:04]} 16. Qxd5 {
[%emt 0:00:31]} Qb6 {[%emt 0:03:04]} 17. Nxb7 {[%emt 0:09:32]} Qxb7 {[%emt 0:
00:00]} 18. Qxc5 {[%emt 0:00:13]} Nd4 {[%emt 0:02:40]} 19. Kh1 {[%emt 0:10:36]}
Rfe8 {[%emt 0:04:50]} 20. b3 {[%emt 0:07:25]} Qxe4 {[%emt 0:01:57]} 21. Rfe1 {
[%emt 0:01:09]} Qf4 {[%emt 0:00:44]} 22. c3 {[%emt 0:02:57]} Nf5 {[%emt 0:00:
00]} 23. Rc2 {[%emt 0:00:41]} h5 {[%emt 0:04:28]} 24. Rce2 {[%emt 0:02:01]}
Rad8 {[%emt 0:00:47]} 25. Qb6 {[%emt 0:02:05]} Rd2 {[%emt 0:01:31]} 26. Qc6 {
[%emt 0:03:00]} Rxe2 {[%emt 0:01:04]} 27. Qxe8+ {[%emt 0:00:21]} Kh7 {[%emt 0:
00:00]} 28. Rg1 {[%emt 0:00:52]} Qxf2 {[%emt 0:01:32]} 29. h3 {[%emt 0:05:33]}
Ng3+ {[%emt 0:00:15]} 30. Kh2 {[%emt 0:00:09]} Nf1+ {[%emt 0:00:04]} 31. Kh1 {
[%emt 0:00:32]} Qg3 {[%emt 0:00:05]} 0-1